Cogmind - Beta 16 @@@ ROGUE MODE // 2025.11.16 @ 20:42:49 Player: Red Box Result: Destroyed by T4-IKS(R) with Subdweller Beam Cannon Performance ------------- Evolutions (0) 0 Regions Visited (3) 600 Robots Destroyed (50) 250 Value Destroyed (1181) 1181 Prototype IDs (3) 60 Alien Tech Used (0) 0 Bonus (224) 224 TOTAL SCORE: 2315 Bonus ------- Follower Combat Kills 224 Cogmind --------- Core Integrity 0/250 Matter 201/300 Energy 198/200 System Corruption 0% Temperature Cool (9) Movement Rolling (120) Ox1 Location -10/Subcaves Parts ------- > --- POWER (1) -------- Subdweller Power Source > --- PROPULSION (2) --- Light Treads Subdweller Monowheel > --- UTILITY (2) ------ Large Storage Unit > --- WEAPON (2) ------- Subdweller Machine Gun Subdweller Machine Gun > --- INVENTORY (15) --- Subdweller Power Source Subdweller Monowheel Improved Heat Sink High-capacity Matter Pod (200) Makeshift System Shield Decoy Drone Bay Subdweller Laser Subdweller Beam Cannon Grenade Launcher Makeshift Axe Peak State ------------ > --- POWER ------------ Light Nuclear Core > --- PROPULSION ------- Light Treads Wheel > --- UTILITY ---------- Large Storage Unit Targeting Computer > --- WEAPON ----------- Autogun Autogun > --- INVENTORY -------- Subdweller Power Source Light Treads Subdweller Monowheel Improved Heat Sink High-capacity Matter Pod Makeshift System Shield Decoy Drone Bay EM Pulse Gun EM Pulse Gun Subdweller Laser Subdweller Laser Autogun Grenade Launcher Makeshift Axe [Rating: 15] Favorites ----------- Power Ion Engine Engine Ion Engine Power Core Light Nuclear Core Propulsion Aluminum Leg Treads Light Treads Leg Aluminum Leg Wheel Compact Wheel Utility Large Storage Unit Device Improved Terrain Scanner Storage Large Storage Unit Processor Targeting Computer Weapon Autogun Energy Gun Medium Laser Ballistic Gun Autogun Launcher Grenade Launcher Special Weapon Mining Laser Slashing Weapon Mining Claw Build | -11 -10 -10 -10 ------- Run | Yrd Mat Min Sub Slots Evolved . | . . . . Power . | . . . . Propulsion . | . . . . Utility . | . . . . Weapon . | . . . . Parts Attached 37 | 7 19 2 9 Power 4 | 1 1 1 1 Engine 3 | 1 1 . 1 Core 1 | . . 1 . Reactor . | . . . . Propulsion 9 | 2 4 . 3 Treads 2 | . 1 . 1 Leg 4 | 2 2 . . Wheel 3 | . 1 . 2 Hover . | . . . . Flight . | . . . . Utility 8 | 2 5 1 . Device 1 | 1 . . . Storage 5 | 1 4 . . Processor 2 | . 1 1 . Hackware . | . . . . Protection . | . . . . Artifact . | . . . . Weapon 16 | 2 9 . 5 Energy Gun 6 | 2 4 . . Energy Cannon . | . . . . Ballistic Gun 6 | . 2 . 4 Ballistic Cannon . | . . . . Launcher 1 | . 1 . . Special Weapon 1 | . 1 . . Impact Weapon . | . . . . Slashing Weapon 2 | . 1 . 1 Piercing Weapon . | . . . . Special Melee Weapon . | . . . . Unidentified Prototypes . | . . . . Parts Lost 9 | . 1 . 8 Power . | . . . . Propulsion 4 | . 1 . 3 Utility 1 | . . . 1 Weapon 4 | . . . 4 Highest Loss Streak 5 | . 1 . 5 To Critical Strikes . | . . . . Average Backups 12 | 5 10 14 13 Power . | . . . . Propulsion 2 | 3 3 2 1 Utility 3 | . 2 4 3 Weapon 5 | . 4 7 6 Tool/Special . | . . . . Unused Backups 18 | . 3 3 12 Power 1 | . . . 1 Propulsion 1 | . . . 1 Utility 9 | . 1 3 5 Weapon 6 | . 2 . 4 Tool/Special 1 | . . . 1 Average Slot Usage (%) 99 | . 99 99 99 Engine 10 | . 14 1 7 Core 3 | . . 12 6 Treads 8 | . 2 14 14 Leg 11 | . 22 . . Wheel 8 | . 2 14 14 Device 6 | . 11 . . Storage 14 | . 14 14 14 Processor 7 | . 2 13 13 Energy Gun 12 | . 23 . . Ballistic Gun 12 | . 1 28 21 Launcher 1 | . . . 5 Slashing Weapon 1 | . 1 . . Peak Build Rating 15 | 9 12 14 15 Average Rating 11 | 7 9 13 13 On Entrance 8 | . 9 11 14 Avg Prop Armor Cover (%) 11 | . 12 12 11 Naked Turns . | . . . . Heaviest Build 31 | 13 31 31 31 Greatest Support 20 | 20 20 16 20 Greatest Overweight (x) 3 | 3 1 1 3 Average Overweight (x) 1 | . . 1 2 Largest Inventory Capacity 15 | 8 15 15 15 Average Capacity 13 | 7 12 15 15 Most Carried 15 | 7 15 15 15 Average Carried 12 | 5 10 14 14 Final Capacity 15 | 8 15 15 15 Final Carried 15 | 7 14 15 11 Class Distribution -------------------- 100% | Mutant Dominant Class ---------------- Mutant | -10/Materials Mutant | -10/Mines Mutant | -10/Subcaves Resources | -11 -10 -10 -10 ----------- Run | Yrd Mat Min Sub Matter Collected 1366 | 270 515 260 321 Remotely . | . . . . Salvage Created 1725 | 231 930 246 318 Parts 110 | 22 44 21 23 Haulers Intercepted 2 | . 2 . . Recyclers Shooed . | . . . . Parts Field Recycled . | . . . . Retrieved Matter . | . . . . Parts Self-Destructed 7 | . . . 7 Prevented . | . . . . Parts Restored . | . . . . Kills | -11 -10 -10 -10 ------- Run | Yrd Mat Min Sub Combat Hostiles Destroyed 33 | . 17 8 8 Guns 29 | . 16 8 5 AOE 3 | . . . 3 Classes Destroyed 10 | 2 6 . 2 Tunneler 8 | 8 . . . Hauler 2 | . 2 . . Recycler 2 | 1 1 . . Mechanic 1 | . 1 . . Operator 1 | . 1 . . Watcher 3 | . 3 . . Swarmer 8 | . 4 4 . Grunt 17 | . 13 4 . Sentry 1 | . . . 1 Subdweller 7 | . . . 7 Best Kill Streak 5 | 3 5 2 2 Combat Bots Only 3 | . 3 2 2 Max Kills in Single Turn 2 | 1 1 1 2 Gunslinging . | . . . . Exploded 1 | . . . 1 Melee . | . . . . Uniques/NPCs Destroyed . | . . . . Combat | -11 -10 -10 -10 -------- Run | Yrd Mat Min Sub Hostile Shots Fired 149 | . 73 19 57 Missed 47 | . 25 8 14 Hits 102 | . 48 11 43 Projectile 102 | . 48 11 43 Critical Strikes 2 | . 1 . 1 Damage Taken 1645 | . 550 106 989 Core 258 | . 81 14 163 Absorbed by Shields . | . . . . Regen/Repaired (Parts) 23 | . 23 . . Core Remaining (%) 100 | 100 . . . Volleys Fired 145 | 22 73 19 31 Largest 2 | 2 2 2 2 Hottest 100 | 80 100 46 60 Shots Fired 287 | 44 143 38 62 Gun 276 | 44 140 38 54 Cannon . | . . . . Launcher 8 | . . . 8 Special 3 | . 3 . . Kinetic 104 | . 12 38 54 Thermal 149 | 44 105 . . Explosive 8 | . . . 8 Electromagnetic 26 | . 26 . . Robot Hit Streak 11 | 6 9 11 11 Robot Miss Streak 4 | 3 4 3 1 Penetration Max . | . . . . Secondary Targets 5 | . 3 2 . Max Gunslinging Chain 1 | . 1 1 . Shots Hit Robots 190 | 23 88 24 55 Core Hits 80 | 10 40 12 18 Critical Kills . | . . . . Critical Parts Destroyed 1 | . . 1 . Critical Strikes 6 | . 5 1 . Burn 5 | . 5 . . Destroy 1 | . . 1 . Melee Attacks 24 | . 12 . 12 Impact . | . . . . Slashing 24 | . 12 . 12 Piercing . | . . . . Sneak Attacks . | . . . . Combat Hostiles . | . . . . Follow-up Attacks . | . . . . Damage Inflicted 2907 | 264 1178 380 1085 Guns 2430 | 264 1157 380 629 Cannons . | . . . . Explosions 477 | . 21 . 456 Melee . | . . . . Ramming . | . . . . Kinetic 1094 | . 85 380 629 Thermal 1118 | 264 854 . . Explosive 456 | . . . 456 Electromagnetic 239 | . 239 . . Impact . | . . . . Slashing . | . . . . Piercing . | . . . . Highest Corruption . | . . . . Average Corruption . | . . . . Corruption Purged . | . . . . Corruption Blocked . | . . . . Overload Shots . | . . . . Overflow Damage . | . . . . Projectiles . | . . . . Explosions . | . . . . Melee . | . . . . Knockbacks . | . . . . Impact . | . . . . Kinetic . | . . . . Secondary . | . . . . Self-Inflicted Damage 23 | . 23 . . Shots 1 | . 1 . . Rammed . | . . . . Targets Rammed . | . . . . Kicked . | . . . . Crushed . | . . . . Highest Temperature 296 | 90 296 20 277 Average Temperature 66 | 30 79 8 159 Received Heat Transfer 815 | . 246 30 539 Siege Activations . | . . . . Martial Activations . | . . . . Shielding Activations . | . . . . Robots Disrupted . | . . . . Combat Hostiles . | . . . . Robots Corrupted . | . . . . Combat Hostiles . | . . . . Parts Fried 2 | . 2 . . Impact Corruptions . | . . . . Robots Melted 1 | . 1 . . Combat Hostiles 1 | . 1 . . Parts Melted 4 | 1 3 . . Heat Transferred 3296 | 600 2696 . . Parts Sabotaged . | . . . . Parts Stolen . | . . . . Parts Stripped . | . . . . Power Chain Reactions 1 | . 1 . . Alert | -11 -10 -10 -10 ------- Run | Yrd Mat Min Sub Maximum Alert Level . | . . . . Low Security (%) 100 | 100 100 100 . Level 1 . | . . . . Level 2 . | . . . . Level 3 . | . . . . Level 4 . | . . . . Level 5 . | . . . . High Security . | . . . . Max Security . | . . . . Peak Influence 199 | 10 199 168 . Initial 71 | . . 71 . Average 73 | 1 81 70 . Influence Increases 1019 | 45 606 292 76 Destroy 0b10 Robot/C 600 | . 340 200 60 Destroy 0b10 Robot/NC 80 | 45 35 . . Destroy Leader 130 | . 80 40 10 Allied During Kill 28 | . . 22 6 Successful Hack 30 | . 30 . . Select Force Hacks 60 | . 60 . . Destroy Structure 16 | . 16 . . Lose Combat Pursuer 75 | . 45 30 . Influence Decreases 1019 | 45 422 392 160 Entered New Map 157 | . . 113 44 Time Decay 812 | 45 412 279 76 Lost Part 30 | . 10 . 20 Lost Ally 20 | . . . 20 Squads Dispatched 4 | . 4 . . Investigation 4 | . 4 . . Extermination . | . . . . Reinforcement . | . . . . Assault . | . . . . Garrison . | . . . . Intercept . | . . . . Searches Triggered . | . . . . Construction Impeded . | . . . . Haulers Reinforced . | . . . . Active Scanning Responses . | . . . . Cargo Convoy Interrupts . | . . . . Stealth | -11 -10 -10 -10 --------- Run | Yrd Mat Min Sub Distress Signals 1 | . 1 . . Communications Jammed . | . . . . Distress Signals . | . . . . Times Spotted 53 | . 27 9 17 Peak Tracking Total 3 | . 3 3 3 Tactical Retreats 4 | . 3 1 . Traps | -11 -10 -10 -10 ------- Run | Yrd Mat Min Sub Traps Triggered . | . . . . Indirectly . | . . . . Trap Hack Attempts . | . . . . Triggered . | . . . . Disarmed . | . . . . Reprogrammed . | . . . . Reused . | . . . . Traps Extracted . | . . . . Installed . | . . . . Triggered . | . . . . Machines | -11 -10 -10 -10 ---------- Run | Yrd Mat Min Sub Machines Disabled . | . . . . Max in Single Turn . | . . . . Machines Repaired . | . . . . Machines Dismantled . | . . . . Machines Sabotaged . | . . . . Overloaded Fab Kills . | . . . . Hacking | -11 -10 -10 -10 --------- Run | Yrd Mat Min Sub Machines Accessed 14 | . 11 1 2 Terminals 8 | . 8 . . Fabricators . | . . . . Repair Stations 1 | . 1 . . Recycling Units 2 | . 2 . . Scanalyzers . | . . . . Garrison Access . | . . . . Total Hacks 43 | . 40 1 2 Successful 29 | . 26 1 2 Failed 13 | . 13 . . Catastrophic . | . . . . Database Lockouts 1 | . 1 . . Manual 32 | . 32 . . Terminals 34 | . 34 . . Fabricators . | . . . . Repair Stations 2 | . 2 . . Recycling Units 4 | . 4 . . Scanalyzers . | . . . . Garrison Access . | . . . . Terminal Hacks 8 | . 5 1 2 Robot Analysis 1 | . 1 . . Prototype ID Bank 2 | . 2 . . Open Door 2 | . . 1 1 Terminal Index 1 | . 1 . . Locate Traps 1 | . 1 . . Release Object 1 | . . . 1 Fabricator Hacks . | . . . . Repair Station Hacks 2 | . 2 . . Scan Component 1 | . 1 . . Repair 1 | . 1 . . Recycling Unit Hacks 1 | . 1 . . Retrieve Components 1 | . 1 . . Scanalyzer . | . . . . Garrison Access Hacks . | . . . . Unauthorized Hacks 18 | . 18 . . Terminals 16 | . 16 . . Track 1 | . 1 . . Assimilate 3 | . 3 . . Botnet 4 | . 4 . . Disrupt 2 | . 2 . . Operators 1 | . 1 . . Skim 5 | . 5 . . Fabricators . | . . . . Repair Stations . | . . . . Recycling Units 2 | . 2 . . Tunnel 2 | . 2 . . Scanalyzers . | . . . . Garrison Access . | . . . . Data Cores Recovered . | . . . . Used . | . . . . Hacking Detections 9 | . 9 . . Full Trace Events 6 | . 6 . . Feedback Events . | . . . . Feedback Blocked . | . . . . Robot Schematics Acquired . | . . . . Robots Built . | . . . . Authchips . | . . . . Time . | . . . . Total Robot Build Rating . | . . . . Part Schematics Acquired . | . . . . Parts Built . | . . . . Authchips . | . . . . Time . | . . . . Total Part Build Rating . | . . . . Part Studies Acquired . | . . . . Parts Repaired 1 | . 1 . . Time 26 | . 26 . . Parts Recycled . | . . . . Recycled Matter . | . . . . Retrieved Matter . | . . . . Retrieved Components 10 | . 10 . . Parts Scanalyzed . | . . . . Part Schematics Acquired . | . . . . Parts Damaged . | . . . . Bothacking | -11 -10 -10 -10 ------------ Run | Yrd Mat Min Sub Used RIF Installer . | . . . . Robots Hacked . | . . . . Non-combat . | . . . . Combat . | . . . . Robot Hacks Applied . | . . . . Relay Couplers Released . | . . . . Fabnet Peak Effective % . | . . . . Robots Rewired . | . . . . Allies Hacked . | . . . . Hacks Repelled . | . . . . Allies | -11 -10 -10 -10 -------- Run | Yrd Mat Min Sub Total Allies 4 | . 1 3 . Largest Group 3 | . 1 3 3 Highest-Rated Group 40 | . 10 40 40 Highest-Rated Ally 16 | . 10 16 16 Total Orders 22 | . 10 7 5 STAY 12 | . 5 4 3 FOLLOW 10 | . 5 3 2 Ally Attacks 38 | . . 4 34 Total Damage 373 | . . 59 314 Kills 9 | . . 2 7 Allies Corrupted . | . . . . Allies Melted . | . . . . Intel | -11 -10 -10 -10 ------- Run | Yrd Mat Min Sub Active Infowar (turns) 3257 | 192 2813 252 . Optics 709 | . 457 252 . Terrain 2548 | 192 2356 . . Robot Analysis Total 1 | . 1 . . Derelict Logs Recovered 2 | . . 1 1 Drone Launches . | . . . . Drone Recoveries . | . . . . Exploration | -11 -10 -10 -10 ------------- Run | Yrd Mat Min Sub Turns Passed 5696 | 254 2822 835 1785 Spaces Moved 3795 | 136 1716 636 1307 Core 15 | 15 . . . Treads 16 | . . . 16 Legs 1395 | 121 1274 . . Wheels 2369 | . 442 636 1291 Hover . | . . . . Flight . | . . . . Fastest Speed 50 | 50 115 115 115 Average Speed 128 | 123 135 115 125 Slowest Speed 240 | 200 190 115 240 Overloaded Moves . | . . . . Propulsion Burnouts . | . . . . Robots Hopped . | . . . . Potential Cave-ins 2 | . 2 . . Cave-ins Triggered . | . . . . Exploration Rate (%) 70 | 6 101 100 74 Regions Visited 3 Branch Regions 2 Pre-discovered Areas 3 | . 2 . 1 Known Exits Taken . | . . . . Unknown Exits Taken 3 | 1 1 1 . Scrap Searched 3 | . . 2 1 Spaces Dug 10 | . 10 . . Terrain Destroyed 56 | . 15 . 41 Melee 7 | . 7 . . Projectile 3 | . 3 . . AOE 46 | . 5 . 41 Terrain Rammed . | . . . . Walls Destroyed . | . . . . Machines Disabled . | . . . . Actions | -11 -10 -10 -10 --------- Run | Yrd Mat Min Sub Total 4312 | 174 2039 711 1388 Wait 219 | 3 170 43 3 Move 3792 | 135 1715 635 1307 Hop . | . . . . Pick Up 39 | 7 17 5 10 Fast Attach 14 | 7 4 2 1 Attach 11 | . 4 . 7 Detach . | . . . . Swap 37 | . 28 . 9 Drop 31 | . 16 7 8 Fire 145 | 22 73 19 31 Melee 24 | . 12 . 12 Ram . | . . . . Kick . | . . . . Crush . | . . . . Escape Stasis . | . . . . Rewire . | . . . . Trap . | . . . . Miscellaneous . | . . . . Route ------- -11/Scrapyard -10/Materials (discovered 5 exits: [*Mat x3] / *Min / *Sub) -10/Mines (discovered 3 exits: [*Mat x2] / *Sub) -10/Subcaves (discovered 2 exits: [*Mat] / [*Scr]) History --------- Turn | Location | Event 2 | -11/Scrapyard | Met Revision 17 19 | -11/Scrapyard | Discovered new exit (range 16) 255 | -11/Scrapyard | Entered Materials 311 | -10/Materials | Build established: Mutant 430 | -10/Materials | Discovered new exit (range 14) 621 | -10/Materials | Discovered new exit (range 16) 743 | -10/Materials | Discovered new exit (range 11) 772 | -10/Materials | Discovered new exit (range 16) 842 | -10/Materials | Central database locked down 1186 | -10/Materials | Discovered new exit (range 9) 2393 | -10/Materials | Repaired EM Pulse Gun 3077 | -10/Materials | Entered Mines 3124 | -10/Mines | Learned Materials terminal intel 3303 | -10/Mines | Assisted by bots powering up and referring to "LRC-V3" 3308 | -10/Mines | Discovered new exit (range 15) 3570 | -10/Mines | Found the Drone Emporium 3576 | -10/Mines | Found Prototype Device 3702 | -10/Mines | Discovered new exit (range 11) 3899 | -10/Mines | Discovered new exit (range 6) 3912 | -10/Mines | Entered Subcaves 3912 | -10/Subcaves | Accompanied by 3 allies 3913 | -10/Subcaves | Approached by a straggling Scientist 3922 | -10/Subcaves | Ambushed by Subdwellers from Twisted Machinery 3952 | -10/Subcaves | Core integrity fell below 50% 4039 | -10/Subcaves | Disturbed a concealed Subdweller 4174 | -10/Subcaves | Learned location of Zion (-7) 4340 | -10/Subcaves | A swath of the cavern ceiling suddenly collapsed 4686 | -10/Subcaves | Shifting Twisted Machinery released Sub. Power Source 4696 | -10/Subcaves | Shifting Twisted Machinery released Sub. Machine Gun 4894 | -10/Subcaves | Discovered new exit (range 9) 5007 | -10/Subcaves | Scientist uncovered a shortcut to Scraptown 5228 | -10/Subcaves | Shifting Twisted Machinery released Flamer 5662 | -10/Subcaves | A Subdweller sparked back to life 5662 | -10/Subcaves | A Subdweller sparked back to life 5662 | -10/Subcaves | A Subdweller sparked back to life 5671 | -10/Subcaves | Core integrity fell below 20% 5697 | -10/Subcaves | Destroyed by T4-IKS(R) with Subdweller Beam Cannon Last Messages --------------- 05612_ 32-Y70(R) destroyed. 05614_ Trooper 1b destroyed. 05615_ UL-5X6(R) destroyed. 05620_ Acquired 32 matter. 05637_ Dropped EM Pulse Gun. 05642_ Acquired Sub. Machine Gun. 05662_ SL-JNT(R) creaks and sparks as it begins to move. 05662_ T4-IKS(R) creaks and sparks as it begins to move. 05662_ HN-B8H(R) creaks and sparks as it begins to move. 05662_ Wheel destroyed. 05662_ Targeting Computer destroyed. 05675_ HN-B8H(R) affixes Scrap Shield Fragment to Scrap Shield. 05677_ Critical hit (Meltdown: +290). 05679_ Lgt. Treads destroyed. 05683_ Autogun destroyed. 05688_ HN-B8H(R) destroyed. Map ----- +----------------------------------------------------+ | | | | | | | | | | | | | | | | | | | | | ?????????????????????????????????????????????????? | | ?????????????????????????????????????????????????? | | ?????????????????????????????????????????????????? | | ?????????????????????????????????????????????????? | | ?????????????????????????????????????????????????? | | ?????????????????????????????????????????????????? | | ?????????????????????????????????????????????????? | | ?????????????????????????????????????????????????? | | ?????????????????????????????????????????????????? | | ?????????????????????????????????????????????????? | | ?????????????????????????????????????????????????? | | ?????????????????????????????????????????????????? | | ?????????????????????????######